bitfinex/quotes_BTCUSD_20260307
["timestamp","ask_amount","ask_price","bid_price","bid_amount"]
[1772852630324,0.07463288,68350.0,68345.0,0.0002]
[1772852631281,0.07315288,68350.0,68345.0,0.0002]
[1772852631440,0.01882084,68349.0,68345.0,0.0002]
[1772852632347,0.00022001,68353.0,68346.0,0.05857214]
[1772852632545,0.07336967,68355.0,68345.0,0.0002]
[1772852632546,0.00148,68354.0,68349.0,0.0554689]
[1772852632774,0.07314628,68357.0,68349.0,0.07517933]
[1772852632980,0.00022001,68364.0,68349.0,0.0197895]
[1772852633136,0.00022001,68369.0,68353.0,0.0197895]
[1772852633335,0.00022001,68369.0,68350.0,0.00148]
[1772852633336,0.07335296,68369.0,68356.0,0.0554689]
[1772852633558,0.07335296,68369.0,68359.0,0.0197895]
[1772852633762,0.07335296,68369.0,68361.0,0.0554689]
[1772852634482,0.07335296,68369.0,68361.0,0.12860936]
[1772852635155,0.07335296,68369.0,68361.0,0.0554689]
[1772852635561,0.01882084,68368.0,68357.0,0.00148]
[1772852636622,0.09195553,68367.0,68357.0,0.00148]
[1772852636765,0.09195553,68367.0,68356.0,0.07314619]
[1772852637628,0.07335296,68369.0,68356.0,0.07314619]
[1772852637773,0.07335296,68369.0,68361.0,0.01944657]
[1772852637973,0.07483296,68369.0,68362.0,0.05712616]
[1772852638590,0.00022001,68367.0,68362.0,0.14971269]
[1772852638943,0.07483296,68369.0,68362.0,0.14971269]
[1772852638944,0.07483272,68369.0,68362.0,0.13026612]
[1772852639090,0.07483272,68369.0,68362.0,0.07313996]
[1772852639292,0.07483272,68369.0,68358.0,0.07314364]
[1772852642244,0.01951746,68368.0,68358.0,0.07314364]
[1772852642648,0.01951746,68368.0,68357.0,0.07314539]
[1772852643127,0.01951746,68368.0,68347.0,0.17491918]
[1772852643320,0.01951746,68359.0,68345.0,0.07335791]
[1772852643537,0.05730748,68361.0,68345.0,0.07335791]
[1772852643538,0.01951746,68357.0,68345.0,0.07335791]
[1772852643786,0.01951746,68357.0,68345.0,0.0002]
[1772852644306,0.01951746,68355.0,68345.0,0.0002]
[1772852644994,0.01951746,68353.0,68345.0,0.0002]
[1772852645674,0.01951746,68351.0,68345.0,0.0002]
[1772852646114,0.01951746,68349.0,68345.0,0.0002]
[1772852646307,0.07463503,68348.0,68345.0,0.0002]
[1772852646512,0.01951746,68347.0,68345.0,0.0002]
[1772852646714,0.07463503,68348.0,68334.0,0.07336894]
[1772852646715,0.00148,68346.0,68334.0,0.07336894]
[1772852646880,0.00148,68346.0,68335.0,0.07496077]
[1772852646881,0.01951746,68345.0,68335.0,0.07496077]
[1772852647077,0.00148,68344.0,68335.0,0.07348086]
[1772852647293,0.13046251,68348.0,68335.0,0.07348086]
[1772852647294,0.02099746,68343.0,68335.0,0.07348086]
[1772852647550,0.00148,68343.0,68335.0,0.07348086]
[1772852647973,0.00148,68342.0,68335.0,0.07348086]
[1772852648120,0.01933384,68347.0,68335.0,0.07348086]
[1772852648325,0.01933384,68345.0,68335.0,0.07348086]
[1772852648751,0.00148,68344.0,68335.0,0.07348086]
[1772852649336,0.00148,68343.0,68335.0,0.07348086]
[1772852649706,0.01933384,68345.0,68335.0,0.07348086]
[1772852649936,0.00148,68342.0,68335.0,0.07348086]
[1772852651190,0.07315931,68344.0,68335.0,0.07348086]
[1772852651390,0.00148,68342.0,68335.0,0.07348086]
[1772852652236,0.07315931,68344.0,68335.0,0.07348086]
[1772852652442,0.00148,68342.0,68335.0,0.07348086]
[1772852653251,0.07315881,68345.0,68335.0,0.07348086]
[1772852653431,0.00148,68342.0,68335.0,0.07348086]
[1772852654217,0.01933384,68343.0,68335.0,0.07348086]
[1772852654427,0.00148,68342.0,68335.0,0.07348086]
[1772852654810,0.01933384,68343.0,68335.0,0.07348086]
[1772852655015,0.00148,68342.0,68335.0,0.07348086]
[1772852655252,0.01933384,68341.0,68335.0,0.07348086]
[1772852655458,0.01933384,68341.0,68335.0,0.07316846]
[1772852656488,0.01933384,68341.0,68334.0,0.0002]
[1772852656706,0.01944901,68341.0,68334.0,0.0002]
[1772852657044,0.02092901,68341.0,68334.0,0.0002]
[1772852657228,0.01944901,68341.0,68334.0,0.0002]
[1772852657432,0.02092901,68341.0,68334.0,0.0002]
[1772852657686,0.02092901,68341.0,68329.0,0.07317537]
[1772852657687,0.05730748,68338.0,68321.0,0.00595]
[1772852657888,0.07316359,68340.0,68321.0,0.00595]
[1772852657889,0.01933384,68337.0,68325.0,0.07357942]
[1772852658159,0.00148,68336.0,68325.0,0.0004]
[1772852658536,0.07316894,68335.0,68325.0,0.0004]
[1772852658740,0.00148,68334.0,68325.0,0.0004]
[1772852658937,0.07316894,68335.0,68325.0,0.0004]
[1772852659145,0.01933384,68332.0,68325.0,0.0004]
[1772852659516,0.00148,68331.0,68325.0,0.0004]
[1772852660268,0.02081384,68331.0,68325.0,0.0004]
[1772852660445,0.02081384,68331.0,68321.0,0.00595]
[1772852660810,0.0731743,68330.0,68321.0,0.00595]
[1772852661463,0.0731743,68330.0,68321.0,0.07913355]
[1772852662189,0.00148,68329.0,68321.0,0.07913355]
[1772852663062,0.0731743,68330.0,68321.0,0.07913355]
[1772852663264,0.00148,68329.0,68321.0,0.07913355]
[1772852665329,0.07317644,68328.0,68321.0,0.07913355]
[1772852666732,0.07317644,68328.0,68321.0,0.00595]
[1772852666934,0.01933384,68327.0,68321.0,0.00595]
[1772852667326,0.07317644,68328.0,68321.0,0.07913373]
[1772852672266,0.00022001,68338.0,68322.0,0.05406759]
[1772852672408,0.00022001,68338.0,68323.0,0.05406759]
[1772852672409,0.00148,68337.0,68323.0,0.05406759]
[1772852672608,0.00148,68339.0,68327.0,0.06]
[1772852672833,0.07327837,68341.0,68328.0,0.05406759]
[1772852673035,0.07464459,68340.0,68329.0,0.07317537]
[1772852673433,0.07316459,68340.0,68329.0,0.07317537]
[1772852673609,0.00148,68339.0,68329.0,0.07317537]
[1772852673811,0.00148,68339.0,68329.0,0.12724296]
[1772852675304,0.07464493,68339.0,68329.0,0.12724296]
[1772852677487,0.00011517,68341.0,68330.0,0.05406759]
[1772852677728,0.0004,68350.0,68329.0,0.07317537]
[1772852677877,0.00148,68348.0,68330.0,0.05406759]
[1772852678085,0.00148,68347.0,68330.0,0.05406759]
[1772852678286,0.0004,68350.0,68330.0,0.05406759]
[1772852678287,0.07355327,68350.0,68330.0,0.05406759]
[1772852678857,0.00148,68349.0,68330.0,0.05406759]
[1772852679059,0.07355327,68350.0,68330.0,0.05406759]
[1772852679207,0.00148,68349.0,68332.0,0.05406759]
[1772852679405,0.00148,68349.0,68336.0,0.00018316]
[1772852679619,0.07462563,68357.0,68335.0,0.05406759]
[1772852679822,0.07462563,68357.0,68333.0,0.0016162]
[1772852679823,0.07314563,68357.0,68339.0,0.05406759]
[1772852680033,0.00148,68356.0,68343.0,0.00018316]
[1772852680268,0.00148,68356.0,68344.0,0.05425075]
[1772852680472,0.07462563,68357.0,68344.0,0.05406759]
[1772852680685,0.0001362,68360.0,68346.0,0.05406759]
[1772852680858,0.14601891,68369.0,68343.0,0.00148]
[1772852680859,0.14601891,68369.0,68350.0,0.05406759]
[1772852680860,0.07313654,68366.0,68350.0,0.05406759]
[1772852681061,0.07313654,68366.0,68351.0,0.05406759]
[1772852681373,0.09254261,68366.0,68352.0,0.12721833]
[1772852681689,0.09254261,68366.0,68353.0,0.05406759]
[1772852682034,0.09265793,68366.0,68353.0,0.05406759]
[1772852682295,0.09265793,68366.0,68353.0,0.05420179]
[1772852682594,0.00148,68365.0,68353.0,0.05420179]
[1772852683972,0.00148,68365.0,68354.0,0.0731486]
[1772852684174,0.00011532,68366.0,68354.0,0.0731486]
[1772852684401,0.00148,68365.0,68355.0,0.05421879]
[1772852685309,0.00148,68365.0,68355.0,0.05435299]
[1772852686242,0.0731379,68364.0,68356.0,0.07314646]
[1772852686447,0.0731379,68364.0,68327.0,0.06]
[1772852686448,0.01947037,68361.0,68343.0,0.07316019]
[1772852686606,0.0731379,68364.0,68343.0,0.07316019]
[1772852686607,0.01947037,68358.0,68344.0,0.0731587]
[1772852686815,0.01947037,68356.0,68345.0,0.07315809]
[1772852687220,0.01947037,68356.0,68343.0,0.07316019]
[1772852687221,0.05687869,68356.0,68343.0,0.07316019]
[1772852687444,0.01947037,68355.0,68343.0,0.07316019]
[1772852688902,0.01947037,68353.0,68339.0,0.07316396]
[1772852689247,0.01947037,68353.0,68345.0,0.06]
[1772852691010,0.01947037,68351.0,68345.0,0.06]
[1772852691230,0.00148,68350.0,68345.0,0.06]
[1772852691445,0.00132775,68350.0,68345.0,0.06]
[1772852691643,0.02079812,68350.0,68345.0,0.06]
[1772852691810,0.01947037,68350.0,68345.0,0.06]
[1772852693374,0.01947037,68350.0,68339.0,0.05406759]
[1772852693375,0.00575,68348.0,68313.0,0.07319143]
[1772852693515,0.01826535,68338.0,68315.0,0.05406759]
[1772852693904,0.01826535,68336.0,68316.0,0.00875412]
[1772852694093,0.01826535,68336.0,68317.0,0.05406759]
[1772852694496,0.01826535,68336.0,68318.0,0.05554759]
[1772852694701,0.01826535,68336.0,68318.0,0.05593229]
[1772852694854,0.01826535,68336.0,68318.0,0.05445229]
[1772852695280,0.01826535,68336.0,68319.0,0.00148]
[1772852695480,0.01826535,68334.0,68320.0,0.07318501]
[1772852697387,0.07317108,68333.0,68320.0,0.07318501]
[1772852697588,0.01984271,68332.0,68320.0,0.07318501]
[1772852697801,0.589389,68370.0,68344.0,0.10160017]
[1772852697961,0.589389,68370.0,68348.0,0.05661407]
[1772852697962,0.07313481,68367.0,68348.0,0.05661407]
[1772852698165,0.589389,68370.0,68345.0,0.00148]
[1772852698166,0.07313298,68369.0,68353.0,0.05661407]
[1772852698391,0.00148,68368.0,68355.0,0.05661407]
[1772852698592,0.02132271,68368.0,68353.0,0.01902323]
[1772852698981,0.02143805,68368.0,68353.0,0.01902323]
[1772852699535,0.01984271,68366.0,68354.0,0.0731486]
[1772852700302,0.01984271,68366.0,68354.0,0.07298124]
[1772852701316,0.01984271,68366.0,68351.0,0.07315081]
[1772852701560,0.07313683,68365.0,68351.0,0.07315081]
[1772852701767,0.01984271,68364.0,68351.0,0.07315081]
[1772852702302,0.01984271,68363.0,68351.0,0.07315081]
[1772852702510,0.01984271,68361.0,68351.0,0.07315081]
[1772852703556,0.09298489,68360.0,68347.0,0.0731561]
[1772852703779,0.01984271,68359.0,68347.0,0.0731561]
[1772852705223,0.07314218,68360.0,68345.0,0.07335808]
[1772852705224,0.05760513,68358.0,68345.0,0.07335808]
[1772852705426,0.02572234,68357.0,68345.0,0.07335809]
[1772852705603,0.07314218,68360.0,68345.0,0.07335809]
[1772852705604,0.02572234,68353.0,68345.0,0.0002]
[1772852707187,0.02572234,68353.0,68339.0,0.07316466]
[1772852707397,0.05760513,68351.0,68339.0,0.07316466]
[1772852707710,0.02539309,68348.0,68338.0,0.0002]
[1772852709520,0.0731561,68347.0,68338.0,0.0002]
[1772852710136,0.09823999,68347.0,68338.0,0.0002]
[1772852713232,0.07315242,68351.0,68338.0,0.0002]
[1772852713438,0.00148,68350.0,68338.0,0.0002]
[1772852714114,0.07315395,68349.0,68338.0,0.07336573]
[1772852719337,0.09670863,68349.0,68338.0,0.07336573]
[1772852721719,0.07315395,68349.0,68338.0,0.07336573]
[1772852721916,0.09637846,68349.0,68338.0,0.07336573]
[1772852723327,0.09637846,68349.0,68338.0,0.0002]
[1772852725914,0.07463355,68350.0,68338.0,0.0002]
[1772852725915,0.00148,68358.0,68341.0,0.11607973]
[1772852726122,0.00011532,68358.0,68350.0,0.05782592]
[1772852726296,0.00148,68359.0,68350.0,0.05782592]
[1772852726525,0.0733602,68362.0,68350.0,0.05794124]
[1772852726708,0.00148,68359.0,68350.0,0.05794124]
[1772852727197,0.00148,68359.0,68350.0,0.17402097]
[1772852728181,0.00148,68359.0,68352.0,0.07315074]
[1772852729921,0.00170001,68359.0,68352.0,0.07315074]
[1772852732139,0.00148,68360.0,68352.0,0.07315074]
[1772852732348,0.00022001,68362.0,68352.0,0.07315074]
[1772852732469,0.00148,68360.0,68352.0,0.07315074]
[1772852732678,0.00022001,68362.0,68352.0,0.07315074]
[1772852732884,0.07313685,68365.0,68353.0,0.11607973]
[1772852733307,0.07313685,68365.0,68353.0,0.17794143]
[1772852733710,0.00148,68364.0,68354.0,0.11607973]
[1772852734139,0.07313685,68365.0,68354.0,0.11607973]
[1772852734333,0.00148,68364.0,68353.0,0.17794143]
[1772852735236,0.00148,68364.0,68354.0,0.0731486]
[1772852735602,0.07313685,68365.0,68354.0,0.0731486]
[1772852735939,0.00148,68364.0,68354.0,0.0731486]
[1772852736145,0.07313685,68365.0,68354.0,0.0731486]
[1772852736303,0.00148,68364.0,68354.0,0.0731486]
[1772852737453,0.07483888,68364.0,68354.0,0.0731486]
[1772852737634,0.07335888,68364.0,68354.0,0.0731486]
[1772852737832,0.00148,68363.0,68354.0,0.0731486]
[1772852738496,0.07335888,68364.0,68354.0,0.0731486]
[1772852738497,0.00022001,68364.0,68354.0,0.0731486]
[1772852738728,0.00148,68363.0,68354.0,0.0731486]
[1772852738936,0.00022001,68364.0,68354.0,0.0731486]
[1772852739130,0.00148,68363.0,68354.0,0.0731486]
[1772852743030,0.07483803,68364.0,68354.0,0.0731486]
[1772852743594,0.00170001,68364.0,68354.0,0.0731486]
[1772852743820,0.00022001,68364.0,68354.0,0.0731486]
[1772852744042,0.00170001,68363.0,68354.0,0.0731486]
[1772852748219,0.00022001,68363.0,68354.0,0.0731486]
[1772852750388,0.00022001,68363.0,68354.0,0.18922833]
[1772852752364,0.00022001,68363.0,68355.0,0.11607973]
[1772852753452,0.03643127,68360.0,68354.0,0.0733486]
[1772852753856,0.03643127,68360.0,68355.0,0.07314724]
[1772852754264,0.03643127,68360.0,68351.0,0.07315089]
[1772852755499,0.03643127,68358.0,68350.0,0.07326748]
[1772852755703,0.07314325,68359.0,68350.0,0.07326748]
[1772852755704,0.03643127,68356.0,68350.0,0.07326748]
[1772852759624,0.03643127,68355.0,68350.0,0.07326748]
[1772852759980,0.03643127,68355.0,68350.0,0.00011532]
[1772852760384,0.03643127,68354.0,68348.0,0.07315482]
[1772852760584,0.01446671,68353.0,68339.0,0.07316466]
[1772852760792,0.03643127,68351.0,68339.0,0.07316466]
[1772852761095,0.03643127,68349.0,68339.0,0.07316466]
[1772852761745,0.03643127,68349.0,68343.0,0.0002]
[1772852761960,0.03643127,68349.0,68339.0,0.07316466]
[1772852762165,0.03643127,68347.0,68338.0,0.0002]
[1772852764237,0.03643127,68346.0,68338.0,0.0002]
[1772852768624,0.00148,68345.0,68338.0,0.0002]
[1772852768921,0.00022001,68356.0,68339.0,0.06348317]
[1772852770010,0.00148,68355.0,68339.0,0.06348317]
[1772852770453,0.00148,68355.0,68340.0,0.07316359]
[1772852770773,0.03643127,68359.0,68341.0,0.06348317]
[1772852771171,0.00022001,68363.0,68341.0,0.06348317]
[1772852771329,0.00148,68362.0,68341.0,0.06348317]
[1772852772930,0.03665128,68363.0,68342.0,0.07316145]
[1772852773136,0.03813128,68363.0,68343.0,0.06348317]
[1772852773345,0.03813128,68363.0,68345.0,0.06348317]
[1772852773979,0.00148,68362.0,68345.0,0.06348317]
[1772852774182,0.00022001,68363.0,68345.0,0.06348317]
[1772852774368,0.00148,68362.0,68345.0,0.06348317]
[1772852774844,0.00148,68362.0,68345.0,0.06448317]
[1772852775181,0.00148,68362.0,68346.0,0.07315717]
[1772852775351,0.00148,68362.0,68347.0,0.06348317]
[1772852775537,0.00022001,68363.0,68347.0,0.06348317]
[1772852775737,0.00148,68362.0,68347.0,0.06348317]
[1772852775947,0.00022001,68366.0,68347.0,0.06348317]
[1772852777375,0.00022001,68366.0,68349.0,0.06348317]
[1772852777572,0.00022001,68366.0,68351.0,0.06348317]
[1772852779566,0.00022001,68366.0,68352.0,0.07315074]
[1772852779771,0.00022001,68366.0,68353.0,0.06348317]
[1772852780788,0.00022001,68371.0,68353.0,0.06348317]
[1772852781759,0.00022001,68371.0,68355.0,0.06348317]
[1772852781922,0.00022001,68371.0,68357.0,0.06348317]
[1772852782358,0.00022001,68373.0,68357.0,0.06348317]
[1772852784727,0.00022001,68373.0,68359.0,0.06348317]
[1772852787982,0.00022001,68373.0,68361.0,0.06348317]
[1772852788214,0.00022001,68373.0,68362.0,0.00148]
[1772852788546,0.00022001,68373.0,68362.0,0.06496317]
[1772852789971,0.00022001,68373.0,68363.0,0.07313897]
[1772852790376,0.03665128,68373.0,68363.0,0.07313897]
[1772852790575,0.03643127,68371.0,68363.0,0.07313897]
[1772852790993,0.03643127,68371.0,68363.0,0.07318956]
[1772852791183,0.03643127,68369.0,68356.0,0.07314605]
[1772852791409,0.04255143,68366.0,68356.0,0.07314605]
[1772852792514,0.04255143,68364.0,68351.0,0.00148]
[1772852792714,0.04403143,68364.0,68351.0,0.00148]
[1772852792940,0.04403143,68364.0,68348.0,0.13884846]
[1772852793097,0.04403143,68364.0,68351.0,0.00148]
[1772852794952,0.04255143,68363.0,68348.0,0.13884846]
[1772852795132,0.04255143,68363.0,68351.0,0.00148]
[1772852795916,0.04255143,68363.0,68349.0,0.06569424]
[1772852796127,0.04255143,68363.0,68351.0,0.00148]
[1772852796456,0.04255143,68363.0,68350.0,0.07315288]
[1772852796656,0.04255143,68363.0,68351.0,0.00148]
[1772852796893,0.04255143,68362.0,68350.0,0.07315288]
[1772852798581,0.07314111,68361.0,68347.0,0.07335288]
[1772852798729,0.04255143,68360.0,68347.0,0.0002]
[1772852798933,0.04255143,68360.0,68348.0,0.00148]
[1772852800494,0.04255143,68360.0,68347.0,0.0002]
[1772852800693,0.04255143,68356.0,68344.0,0.00148]
[1772852800953,0.04403143,68356.0,68344.0,0.00148]
[1772852801158,0.04403143,68356.0,68342.0,0.00148]
[1772852802787,0.04247533,68354.0,68343.0,0.07316038]
[1772852803008,0.04247533,68354.0,68347.0,0.0002]
[1772852803211,0.04247533,68354.0,68343.0,0.07316038]
[1772852803596,0.0423232,68354.0,68343.0,0.07316038]
[1772852803797,0.0423232,68354.0,68343.0,0.03747074]
[1772852803994,0.0423232,68354.0,68343.0,0.0680693]
[1772852804177,0.04217107,68354.0,68343.0,0.0680693]
[1772852804679,0.04201889,68354.0,68343.0,0.0680693]
[1772852804881,0.04201889,68354.0,68344.0,0.14122861]
[1772852807783,0.04186667,68354.0,68344.0,0.14122861]
[1772852809890,0.04186667,68354.0,68344.0,0.14142861]
[1772852810100,0.04186667,68354.0,68344.0,0.07335931]
[1772852810300,0.042171,68353.0,68344.0,0.07335931]
[1772852811647,0.04186671,68353.0,68344.0,0.07335931]
[1772852811877,0.04171455,68353.0,68344.0,0.07335931]
[1772852820069,0.04156236,68353.0,68344.0,0.07335931]
[1772852820404,0.04156236,68353.0,68344.0,0.07315931]
[1772852824365,0.04156236,68353.0,68344.0,0.07335931]
[1772852827507,0.04156236,68353.0,68344.0,0.067285]
[1772852830632,0.04156236,68353.0,68344.0,0.01488793]
[1772852833280,0.04178237,68353.0,68344.0,0.01488793]
[1772852838304,0.07314744,68357.0,68344.0,0.01488793]
[1772852838305,0.11522342,68366.0,68345.0,0.0680693]
[1772852838488,0.00148,68363.0,68345.0,0.0680693]
[1772852839050,0.00148,68364.0,68345.0,0.0680693]
[1772852839257,0.00022001,68367.0,68347.0,0.06800498]
[1772852839435,0.00022001,68368.0,68349.0,0.06796097]
[1772852840038,0.00022001,68368.0,68351.0,0.21830769]
[1772852840360,0.00022001,68368.0,68352.0,0.06796097]
[1772852841327,0.00022001,68368.0,68354.0,0.06796097]
[1772852841528,0.00022001,68368.0,68356.0,0.06796097]
[1772852841940,0.00022001,68367.0,68356.0,0.06796097]
[1772852843387,0.00022001,68367.0,68358.0,0.06796097]
[1772852844939,0.00148,68371.0,68357.0,0.07314539]
[1772852845072,0.00148,68371.0,68358.0,0.06782209]
[1772852845507,0.00170001,68373.0,68360.0,0.06782209]
[1772852845904,0.00022001,68373.0,68360.0,0.06782209]
[1772852846118,0.00170001,68373.0,68360.0,0.06782209]
[1772852847009,0.00170001,68373.0,68361.0,0.06930209]
[1772852847429,0.00022001,68373.0,68362.0,0.07314004]
[1772852847837,0.00170001,68373.0,68362.0,0.14096213]
[1772852848660,0.00022001,68371.0,68362.0,0.14096213]
[1772852849022,0.00170001,68373.0,68362.0,0.07314004]
[1772852849218,0.00022001,68374.0,68362.0,0.07314004]
[1772852849443,0.00615,68375.0,68364.0,0.0731379]
[1772852849660,0.00615,68375.0,68365.0,0.06743809]
[1772852851765,0.00615,68375.0,68366.0,0.07313576]
[1772852853063,0.01651716,68376.0,68367.0,0.06743809]
[1772852853473,0.00022001,68381.0,68366.0,0.07313576]
[1772852853474,0.04186668,68382.0,68366.0,0.07313576]
[1772852853666,0.00022001,68385.0,68370.0,0.07313149]
[1772852853864,0.00170001,68385.0,68371.0,0.06620809]
[1772852854067,0.07311233,68388.0,68371.0,0.06620809]
[1772852854267,0.00148,68386.0,68371.0,0.06620809]
[1772852854683,0.07475211,68387.0,68371.0,0.06620809]
[1772852854901,0.11661879,68387.0,68371.0,0.06620809]
[1772852855210,0.04186668,68386.0,68371.0,0.06616409]
[1772852855363,0.00022001,68382.0,68371.0,0.06616409]
[1772852855767,0.00022001,68382.0,68373.0,0.06616409]
[1772852856004,0.00022001,68382.0,68374.0,0.06764409]
[1772852856474,0.0001588,68387.0,68374.0,0.06764409]
[1772852857216,0.04202548,68387.0,68374.0,0.06764409]
[1772852859313,0.04202548,68387.0,68375.0,0.07312614]
[1772852862014,0.04224549,68387.0,68375.0,0.07312614]
[1772852864874,0.04224549,68387.0,68376.0,0.00148]
[1772852865273,0.04224549,68387.0,68375.0,0.07312614]
[1772852865602,0.04224549,68387.0,68376.0,0.00148]
[1772852865924,0.04488293,68386.0,68377.0,0.073124]
[1772852867293,0.04488293,68386.0,68375.0,0.07460614]
[1772852868231,0.04488293,68386.0,68375.0,0.07312614]
[1772852868561,0.04488293,68386.0,68375.0,0.07460614]
[1772852868736,0.04488293,68386.0,68375.0,0.07312614]
[1772852868900,0.04510294,68386.0,68375.0,0.07460614]
[1772852869744,0.04510294,68386.0,68375.0,0.07312614]
[1772852869943,0.04510294,68386.0,68375.0,0.07460614]
[1772852870160,0.04510294,68386.0,68375.0,0.07312614]
[1772852870369,0.04510294,68386.0,68375.0,0.07460614]
[1772852872169,0.04510294,68386.0,68375.0,0.07312614]
[1772852872395,0.04510294,68386.0,68375.0,0.07460614]
[1772852873338,0.04510294,68386.0,68375.0,0.07312614]
[1772852873512,0.00022001,68386.0,68376.0,0.06612009]
[1772852875617,0.00022001,68386.0,68377.0,0.073124]
[1772852879148,0.03505043,68386.0,68377.0,0.073124]
[1772852881177,0.03541753,68386.0,68377.0,0.073124]
[1772852883291,0.03541753,68386.0,68377.0,0.24727535]
[1772852891186,0.03541753,68386.0,68377.0,0.24747535]
[1772852897602,0.00058711,68386.0,68377.0,0.24747535]
[1772852899254,0.0737015,68386.0,68377.0,0.24747535]
[1772852899430,0.01929393,68385.0,68377.0,0.073324]
[1772852900346,0.01966103,68385.0,68377.0,0.073324]
[1772852902684,0.0003671,68385.0,68377.0,0.073324]
[1772852903093,0.0003671,68385.0,68377.0,0.13944409]
[1772852907878,0.00148,68396.0,68380.0,0.01801073]
[1772852908095,0.002,68400.0,68377.0,0.073324]
[1772852908096,0.002,68400.0,68385.0,0.06612009]
[1772852908271,0.00348,68400.0,68388.0,0.01801073]
[1772852908467,0.002,68400.0,68389.0,0.06612009]
[1772852908647,0.0001515,68401.0,68391.0,0.06612009]
[1772852908848,0.0001515,68401.0,68392.0,0.06572009]
[1772852909181,0.00026682,68401.0,68392.0,0.06572009]
[1772852909587,0.00026682,68401.0,68393.0,0.07310689]
[1772852910342,0.07309833,68403.0,68393.0,0.07310689]
[1772852910343,0.07309677,68403.0,68393.0,0.07310689]
[1772852910541,0.07309677,68403.0,68394.0,0.06451672]
[1772852911769,0.0730952,68404.0,68395.0,0.07310475]
[1772852913577,0.07308753,68412.0,68396.0,0.08247706]
[1772852913778,0.07308771,68411.0,68397.0,0.06446633]
[1772852913985,0.07308771,68411.0,68398.0,0.01801073]
[1772852914211,0.00022001,68408.0,68398.0,0.08247706]
[1772852914592,0.00022001,68408.0,68398.0,0.01801073]
[1772852914789,0.00022001,68408.0,68395.0,0.07310475]
[1772852914790,0.06547822,68412.0,68401.0,0.06446633]
[1772852915159,0.09385958,68413.0,68401.0,0.06446633]
[1772852915521,0.09237958,68413.0,68402.0,0.07309727]
[1772852916202,0.00022001,68415.0,68402.0,0.1375636]
[1772852916404,0.00022001,68415.0,68402.0,0.15557433]
[1772852916798,0.01951394,68415.0,68402.0,0.15557433]
[1772852917000,0.09259742,68415.0,68402.0,0.15557433]
[1772852917201,0.01929393,68413.0,68401.0,0.07309805]
[1772852917678,0.01929393,68411.0,68401.0,0.07309805]
[1772852918058,0.01929393,68411.0,68401.0,0.07457805]
[1772852918260,0.01929393,68411.0,68401.0,0.07309805]
[1772852920821,0.07308872,68410.0,68401.0,0.07309805]
[1772852921855,0.07308872,68410.0,68393.0,0.07322184]
[1772852921856,0.01734227,68409.0,68398.0,0.00148]
[1772852922208,0.01734227,68409.0,68397.0,0.00148]
[1772852922712,0.01734227,68409.0,68393.0,0.00011532]
[1772852922934,0.01734227,68404.0,68393.0,0.00011532]
[1772852923146,0.01734227,68403.0,68393.0,0.00011532]
[1772852923339,0.01734227,68401.0,68389.0,0.0001515]
[1772852923521,0.01745751,68401.0,68389.0,0.0001515]
[1772852925128,0.01734227,68399.0,68389.0,0.0001515]
[1772852925327,0.07309941,68400.0,68389.0,0.0001515]
[1772852925328,0.01734227,68397.0,68389.0,0.0001515]
[1772852925535,0.01734227,68397.0,68383.0,0.00148]
[1772852927341,0.01734227,68397.0,68389.0,0.0002]
[1772852927559,0.07310369,68396.0,68389.0,0.0002]
[1772852927749,0.07310369,68396.0,68389.0,0.0003611]
[1772852928309,0.09044596,68396.0,68389.0,0.0003611]
[1772852933298,0.07310369,68396.0,68389.0,0.0003611]
[1772852933513,0.01734227,68395.0,68389.0,0.0003611]
[1772852935325,0.07310582,68394.0,68389.0,0.0003611]
[1772852937246,0.07295327,68394.0,68389.0,0.0003611]
[1772852937978,0.07395327,68394.0,68389.0,0.0003611]
[1772852941765,0.07295327,68394.0,68389.0,0.0003611]
[1772852943265,0.07295327,68394.0,68385.0,0.07311528]
[1772852944976,0.07295327,68394.0,68384.0,0.07311643]
[1772852945179,0.07295327,68394.0,68383.0,0.07311692]
[1772852945918,0.07295327,68394.0,68382.0,0.0002]
[1772852946162,0.00977959,68393.0,68382.0,0.0002]
[1772852946366,0.00977959,68391.0,68382.0,0.0002]
[1772852946569,0.00148,68392.0,68382.0,0.0002]
[1772852947155,0.07310903,68391.0,68382.0,0.0002]
[1772852948212,0.08270542,68391.0,68382.0,0.0002]
[1772852948401,0.08370542,68391.0,68382.0,0.0002]
[1772852948609,0.08370542,68391.0,68377.0,0.01737316]
[1772852948610,0.07410903,68391.0,68377.0,0.0002]
[1772852948782,0.00956888,68387.0,68375.0,0.00635]
[1772852948983,0.00956888,68385.0,68375.0,0.00635]
[1772852949193,0.08268539,68384.0,68375.0,0.00635]
[1772852950229,0.07311651,68384.0,68370.0,0.0002]
[1772852950379,0.07311651,68384.0,68361.0,0.0002]
[1772852950380,0.0466194,68380.0,68361.0,0.07334083]
[1772852950587,0.00945139,68375.0,68362.0,0.07313973]
[1772852950800,0.00148,68379.0,68361.0,0.07334083]
[1772852950801,0.06533335,68374.0,68361.0,0.07334083]
[1772852951011,0.01093139,68373.0,68361.0,0.07334083]
[1772852951206,0.07312935,68372.0,68361.0,0.07334083]
[1772852951424,0.07312935,68372.0,68361.0,0.0002]
[1772852952527,0.07412935,68372.0,68361.0,0.0002]
[1772852952929,0.07312935,68372.0,68361.0,0.0002]
[1772852953302,0.07412935,68372.0,68361.0,0.0002]
[1772852953560,0.07412935,68372.0,68361.0,0.01791413]
[1772852953932,0.07512935,68372.0,68361.0,0.01791413]
[1772852954115,0.07412935,68372.0,68361.0,0.01791413]
[1772852954317,0.07312935,68372.0,68361.0,0.01791413]
[1772852954746,0.07412935,68372.0,68361.0,0.01791413]
[1772852955107,0.07312935,68372.0,68361.0,0.01791413]
[1772852955523,0.07412935,68372.0,68361.0,0.01791413]
[1772852955956,0.07312935,68372.0,68361.0,0.01791413]
[1772852956171,0.06533335,68371.0,68361.0,9.558e-05]
[1772852956369,0.00910628,68370.0,68361.0,9.558e-05]
[1772852956871,0.00895375,68370.0,68361.0,9.558e-05]
[1772852957434,0.07313256,68369.0,68361.0,9.558e-05]
[1772852958186,0.07313256,68369.0,68361.0,0.00029558]
[1772852959417,0.0817994,68369.0,68361.0,0.00029558]
[1772852959613,0.0817994,68369.0,68359.0,0.0002]
[1772852959808,0.00866684,68368.0,68359.0,0.0002]
[1772852960001,0.00148,68367.0,68359.0,0.0002]
[1772852961576,0.07313576,68366.0,68359.0,0.0002]
[1772852965937,0.07313576,68366.0,68358.0,0.0002697]
[1772852971359,0.07313576,68366.0,68358.0,0.0004697]
[1772852974082,0.07313576,68366.0,68354.0,0.0002]
[1772852974679,0.07313576,68366.0,68354.0,0.03783172]
[1772852977918,0.07313576,68366.0,68354.0,0.0002]
[1772852978140,0.0729832,68366.0,68354.0,0.0002]
[1772852978474,0.07283067,68366.0,68354.0,0.0002]